[Event "*** Titled Tuesday Blitz"]
[Site "Chess.com"]
[Date "2019.09.03"]
[Round "9"]
[White "iturrizaga"]
[Black "Roman_Ovetchkin"]
[Result "1-0"]
[WhiteElo "2938"]
[BlackElo "2743"]
[TimeControl "180+2"]
[EndTime "17:10:53 PDT"]
[Termination "iturrizaga won by checkmate"]

1. c4 {[%clk 0:03:01.9]} 1... e5 {[%clk 0:03:00.2]} 2. g3 {[%clk 0:03:03.8]}
2... Nf6 {[%clk 0:02:58.8]} 3. Bg2 {[%clk 0:03:05.7]} 3... d6 {[%clk 0:02:55.9]}
4. Nc3 {[%clk 0:03:05.6]} 4... g6 {[%clk 0:02:57.1]} 5. d4 {[%clk 0:03:00.4]}
5... Nbd7 {[%clk 0:02:57.3]} 6. Nf3 {[%clk 0:02:58.1]} 6... Bg7 {[%clk
0:02:58.1]} 7. O-O {[%clk 0:02:59.1]} 7... O-O {[%clk 0:02:59.1]} 8. e3 {[%clk
0:02:59.1]} 8... Re8 {[%clk 0:02:52]} 9. Qc2 {[%clk 0:02:58.4]} 9... c6 {[%clk
0:02:51.7]} 10. b3 {[%clk 0:02:54.5]} 10... a6 {[%clk 0:02:48.7]} 11. Ba3 {[%clk
0:02:54.2]} 11... e4 {[%clk 0:02:46.1]} 12. Nd2 {[%clk 0:02:45.1]} 12... d5
{[%clk 0:02:46.6]} 13. cxd5 {[%clk 0:02:42]} 13... cxd5 {[%clk 0:02:46.2]} 14.
Rac1 {[%clk 0:02:42.8]} 14... Re6 {[%clk 0:02:13.4]} 15. Na4 {[%clk 0:02:13.3]}
15... Rc6 {[%clk 0:02:10.6]} 16. Qb2 {[%clk 0:02:14.7]} 16... Rxc1 {[%clk
0:01:55.1]} 17. Rxc1 {[%clk 0:02:16.6]} 17... b5 {[%clk 0:01:56.2]} 18. Nc5
{[%clk 0:02:17.2]} 18... Nf8 {[%clk 0:01:57.6]} 19. Qc2 {[%clk 0:02:04]} 19...
h5 {[%clk 0:01:54.6]} 20. Bb2 {[%clk 0:01:40.6]} 20... N8h7 {[%clk 0:01:42.8]}
21. a4 {[%clk 0:01:39.5]} 21... b4 {[%clk 0:01:43]} 22. f3 {[%clk 0:01:34.6]}
22... exf3 {[%clk 0:01:41.4]} 23. Nxf3 {[%clk 0:01:36.5]} 23... Bf5 {[%clk
0:01:37.9]} 24. Qd2 {[%clk 0:01:32]} 24... a5 {[%clk 0:01:35]} 25. Ne5 {[%clk
0:01:30.3]} 25... Ng5 {[%clk 0:01:31.2]} 26. Qe2 {[%clk 0:01:15.3]} 26... Qe8
{[%clk 0:01:18.2]} 27. Qb5 {[%clk 0:01:12.4]} 27... Nge4 {[%clk 0:01:14.8]} 28.
Qxe8+ {[%clk 0:01:02.9]} 28... Rxe8 {[%clk 0:01:10.4]} 29. Nb7 {[%clk
0:01:03.6]} 29... Ra8 {[%clk 0:01:08.4]} 30. Nc6 {[%clk 0:01:02.8]} 30... Ng4
{[%clk 0:01:05.2]} 31. Re1 {[%clk 0:01:03.5]} 31... Bh6 {[%clk 0:00:56.2]} 32.
Ne7+ {[%clk 0:00:59]} 32... Kf8 {[%clk 0:00:53.2]} 33. Nxd5 {[%clk 0:00:59.7]}
33... Rc8 {[%clk 0:00:51.5]} 34. Nxa5 {[%clk 0:00:50.4]} 34... Rc2 {[%clk
0:00:46.8]} 35. Nc4 {[%clk 0:00:51.5]} 35... Nd2 {[%clk 0:00:32]} 36. Nxb4
{[%clk 0:00:30.4]} 36... Nxc4 {[%clk 0:00:30.8]} 37. Nxc2 {[%clk 0:00:31.6]}
37... Nxb2 {[%clk 0:00:31.1]} 38. e4 {[%clk 0:00:32.1]} 38... Bd7 {[%clk
0:00:25]} 39. a5 {[%clk 0:00:31.4]} 39... Nd3 {[%clk 0:00:20]} 40. Ra1 {[%clk
0:00:29]} 40... Nb4 {[%clk 0:00:13]} 41. Nxb4 {[%clk 0:00:20.9]} 41... Be3+
{[%clk 0:00:13.7]} 42. Kf1 {[%clk 0:00:22.5]} 42... Bb5+ {[%clk 0:00:15.3]} 43.
Ke1 {[%clk 0:00:23.9]} 43... Bxd4 {[%clk 0:00:16.3]} 44. a6 {[%clk 0:00:16.3]}
44... Bc3+ {[%clk 0:00:13.4]} 45. Kd1 {[%clk 0:00:17.5]} 45... Ne3+ {[%clk
0:00:11.2]} 46. Kc1 {[%clk 0:00:18.3]} 46... Bxb4 {[%clk 0:00:12.7]} 47. a7
{[%clk 0:00:19.7]} 47... Bc6 {[%clk 0:00:14]} 48. a8=Q+ {[%clk 0:00:19.9]} 48...
Bxa8 {[%clk 0:00:15.2]} 49. Rxa8+ {[%clk 0:00:21.8]} 49... Kg7 {[%clk
0:00:16.8]} 50. Bf3 {[%clk 0:00:23.5]} 50... Nf1 {[%clk 0:00:16.2]} 51. Ra2
{[%clk 0:00:23.8]} 51... Bc5 {[%clk 0:00:15.5]} 52. Be2 {[%clk 0:00:20.1]} 52...
Nxh2 {[%clk 0:00:15.5]} 53. Rc2 {[%clk 0:00:20.7]} 53... Ba3+ {[%clk 0:00:15.5]}
54. Kb1 {[%clk 0:00:21.5]} 54... Kf6 {[%clk 0:00:16.3]} 55. Bxh5 {[%clk
0:00:21.4]} 55... gxh5 {[%clk 0:00:12.7]} 56. Rxh2 {[%clk 0:00:22]} 56... Kg5
{[%clk 0:00:14.2]} 57. Rf2 {[%clk 0:00:23]} 57... Bd6 {[%clk 0:00:11.9]} 58.
Rxf7 {[%clk 0:00:21.8]} 58... Bxg3 {[%clk 0:00:12.9]} 59. b4 {[%clk 0:00:16.9]}
59... h4 {[%clk 0:00:12.7]} 60. Rh7 {[%clk 0:00:15.9]} 60... Kg4 {[%clk
0:00:09.7]} 61. b5 {[%clk 0:00:14.2]} 61... h3 {[%clk 0:00:09.6]} 62. b6 {[%clk
0:00:15.6]} 62... h2 {[%clk 0:00:09.1]} 63. b7 {[%clk 0:00:14.8]} 63... Bh4
{[%clk 0:00:10]} 64. b8=Q {[%clk 0:00:12.8]} 64... h1=Q+ {[%clk 0:00:11.2]} 65.
Ka2 {[%clk 0:00:13.3]} 65... Qxe4 {[%clk 0:00:10.7]} 66. Rg7+ {[%clk 0:00:12.8]}
66... Bg5 {[%clk 0:00:10.9]} 67. Qc8+ {[%clk 0:00:10.3]} 67... Qf5 {[%clk
0:00:10.9]} 68. Qc4+ {[%clk 0:00:10.6]} 68... Kh5 {[%clk 0:00:11.5]} 69. Rf7
{[%clk 0:00:07.6]} 69... Qa5+ {[%clk 0:00:10.2]} 70. Kb3 {[%clk 0:00:09]} 70...
Qb6+ {[%clk 0:00:11.4]} 71. Ka4 {[%clk 0:00:10.2]} 71... Qe3 {[%clk 0:00:09.5]}
72. Rh7+ {[%clk 0:00:09.7]} 72... Kg6 {[%clk 0:00:09.9]} 73. Qf7# {[%clk
0:00:10.6]} 1-0

[Event "*** Titled Tuesday Blitz"]
[Site "Chess.com"]
[Date "2019.09.03"]
[Round "9"]
[White "ahkashefi2800"]
[Black "GCamachoMartinez"]
[Result "1/2-1/2"]
[WhiteElo "2152"]
[BlackElo "2432"]
[TimeControl "180+2"]
[EndTime "17:10:56 PDT"]
[Termination "Game drawn by repetition"]

1. d4 {[%clk 0:03:01.9]} 1... Nf6 {[%clk 0:02:59.8]} 2. c4 {[%clk 0:03:02.5]}
2... g6 {[%clk 0:03:01]} 3. Nc3 {[%clk 0:03:02]} 3... d5 {[%clk 0:03:02.1]} 4.
cxd5 {[%clk 0:03:02.2]} 4... Nxd5 {[%clk 0:03:03.1]} 5. f3 {[%clk 0:03:03.2]}
5... Nxc3 {[%clk 0:03:04.6]} 6. bxc3 {[%clk 0:03:02.7]} 6... Bg7 {[%clk
0:03:06.5]} 7. e4 {[%clk 0:03:03.7]} 7... c5 {[%clk 0:03:08]} 8. Be3 {[%clk
0:03:04.7]} 8... cxd4 {[%clk 0:03:08.4]} 9. cxd4 {[%clk 0:03:03.6]} 9... O-O
{[%clk 0:03:06.5]} 10. Bc4 {[%clk 0:03:01.5]} 10... b5 {[%clk 0:03:07.5]} 11.
Bb3 {[%clk 0:03:02]} 11... Nc6 {[%clk 0:03:04.4]} 12. Ne2 {[%clk 0:03:01.8]}
12... Na5 {[%clk 0:02:41.7]} 13. O-O {[%clk 0:03:01.1]} 13... Bb7 {[%clk
0:02:38.7]} 14. Qd3 {[%clk 0:03:00.1]} 14... Nxb3 {[%clk 0:02:38.4]} 15. axb3
{[%clk 0:03:00]} 15... a6 {[%clk 0:02:40.3]} 16. Rfc1 {[%clk 0:03:00.1]} 16...
Qd7 {[%clk 0:02:41]} 17. Rc5 {[%clk 0:02:55.1]} 17... e6 {[%clk 0:02:41.7]} 18.
b4 {[%clk 0:02:54.6]} 18... Rfc8 {[%clk 0:02:43]} 19. Rac1 {[%clk 0:02:54.2]}
19... Bf8 {[%clk 0:02:43.8]} 20. Rxc8 {[%clk 0:02:54.4]} 20... Rxc8 {[%clk
0:02:45.7]} 21. Rxc8 {[%clk 0:02:53.4]} 21... Qxc8 {[%clk 0:02:47.6]} 22. Bd2
{[%clk 0:02:52.6]} 22... Qd7 {[%clk 0:02:31.5]} 23. Kf2 {[%clk 0:02:50.2]} 23...
f5 {[%clk 0:02:30.9]} 24. Bc3 {[%clk 0:02:44.3]} 24... fxe4 {[%clk 0:02:31.1]}
25. fxe4 {[%clk 0:02:42.8]} 25... Bd6 {[%clk 0:02:30.7]} 26. g3 {[%clk
0:02:40.7]} 26... Qf7+ {[%clk 0:02:29.3]} 27. Qf3 {[%clk 0:02:40]} 27... Bxe4
{[%clk 0:02:27.8]} 28. Qxf7+ {[%clk 0:02:40.6]} 28... Kxf7 {[%clk 0:02:29.7]}
29. Ke3 {[%clk 0:02:42]} 29... Bd5 {[%clk 0:02:28.4]} 30. Nf4 {[%clk 0:02:40.5]}
30... g5 {[%clk 0:02:28.3]} 31. Nd3 {[%clk 0:02:41.4]} 31... g4 {[%clk
0:02:11.8]} 32. Ne5+ {[%clk 0:02:36.9]} 32... Kf6 {[%clk 0:01:46]} 33. Nxg4+
{[%clk 0:02:36.6]} 33... Kf5 {[%clk 0:01:46.2]} 34. Nf2 {[%clk 0:02:36.6]} 34...
h5 {[%clk 0:00:49.8]} 35. Bd2 {[%clk 0:02:35.5]} 35... a5 {[%clk 0:00:46.3]} 36.
bxa5 {[%clk 0:02:36.1]} 36... b4 {[%clk 0:00:47.4]} 37. a6 {[%clk 0:02:31.2]}
37... b3 {[%clk 0:00:48.2]} 38. Bc3 {[%clk 0:02:28.8]} 38... h4 {[%clk
0:00:35.6]} 39. g4+ {[%clk 0:02:26.5]} 39... Kg6 {[%clk 0:00:33.4]} 40. h3
{[%clk 0:02:24.4]} 40... Bg3 {[%clk 0:00:34.1]} 41. Nd3 {[%clk 0:02:22.4]} 41...
Bb8 {[%clk 0:00:29.6]} 42. Bb2 {[%clk 0:02:11.2]} 42... Kg5 {[%clk 0:00:28.4]}
43. Bc1 {[%clk 0:02:11]} 43... Kf6 {[%clk 0:00:25.7]} 44. Nc5 {[%clk 0:01:44.1]}
44... Kg6 {[%clk 0:00:19.4]} 45. Kd3 {[%clk 0:01:41]} 45... Bg2 {[%clk
0:00:18.4]} 46. Nxe6 {[%clk 0:01:01.5]} 46... Bxh3 {[%clk 0:00:18.2]} 47. a7
{[%clk 0:01:02.3]} 47... Bxa7 {[%clk 0:00:18]} 48. Nf4+ {[%clk 0:01:04.2]} 48...
Kg5 {[%clk 0:00:19.2]} 49. Nxh3+ {[%clk 0:01:03.6]} 49... Kxg4 {[%clk
0:00:21.1]} 50. Nf2+ {[%clk 0:01:03.5]} 50... Kf3 {[%clk 0:00:22.3]} 51. Nh3
{[%clk 0:00:55.2]} 51... Kg4 {[%clk 0:00:23.4]} 52. Nf2+ {[%clk 0:00:31]} 52...
Kg3 {[%clk 0:00:24.5]} 53. Ne4+ {[%clk 0:00:25.9]} 53... Kg2 {[%clk 0:00:25.7]}
54. d5 {[%clk 0:00:14.1]} 54... h3 {[%clk 0:00:25.5]} 55. Bf4 {[%clk 0:00:14.4]}
55... b2 {[%clk 0:00:21.9]} 56. Kc2 {[%clk 0:00:09.4]} 56... Be3 {[%clk
0:00:16.4]} 57. Be5 {[%clk 0:00:06.7]} 57... Kf3 {[%clk 0:00:15.1]} 58. Nc3
{[%clk 0:00:06.1]} 58... Bf4 {[%clk 0:00:14.4]} 59. Bxf4 {[%clk 0:00:03.7]}
59... Kxf4 {[%clk 0:00:15.5]} 60. d6 {[%clk 0:00:05.1]} 60... h2 {[%clk
0:00:16.7]} 61. d7 {[%clk 0:00:06.5]} 61... h1=Q {[%clk 0:00:18]} 62. d8=Q
{[%clk 0:00:04.2]} 62... Qc1+ {[%clk 0:00:19.3]} 63. Kb3 {[%clk 0:00:03.9]}
63... b1=Q+ {[%clk 0:00:16.8]} 64. Nxb1 {[%clk 0:00:04.9]} 64... Qxb1+ {[%clk
0:00:18.7]} 65. Kc4 {[%clk 0:00:06.8]} 65... Qc2+ {[%clk 0:00:18.5]} 66. Kb4
{[%clk 0:00:08]} 66... Qb2+ {[%clk 0:00:19.3]} 67. Kc5 {[%clk 0:00:08.9]} 67...
Qc3+ {[%clk 0:00:20.3]} 68. Kb6 {[%clk 0:00:08.5]} 68... Qb4+ {[%clk 0:00:18.5]}
69. Ka7 {[%clk 0:00:09.5]} 69... Qc5+ {[%clk 0:00:16.2]} 70. Kb7 {[%clk
0:00:09.7]} 70... Qb5+ {[%clk 0:00:14.8]} 71. Ka7 {[%clk 0:00:10.5]} 71... Qa4+
{[%clk 0:00:11.7]} 72. Kb8 {[%clk 0:00:10.6]} 72... Qb5+ {[%clk 0:00:12.7]} 73.
Kc8 {[%clk 0:00:11.3]} 73... Qc6+ {[%clk 0:00:13.7]} 74. Kb8 {[%clk 0:00:12.1]}
74... Qb5+ {[%clk 0:00:14.8]} 75. Ka8 {[%clk 0:00:09.8]} 75... Qa6+ {[%clk
0:00:15.3]} 76. Kb8 {[%clk 0:00:09.5]} 76... Qb5+ {[%clk 0:00:16.1]} 1/2-1/2

[Event "*** Titled Tuesday Blitz"]
[Site "Chess.com"]
[Date "2019.09.03"]
[Round "10"]
[White "Morscas"]
[Black "Al_Shima"]
[Result "0-1"]
[WhiteElo "2254"]
[BlackElo "2447"]
[TimeControl "180+2"]
[EndTime "17:14:26 PDT"]
[Termination "Al_Shima won by resignation"]

1. e4 {[%clk 0:03:01.9]} 1... d5 {[%clk 0:03:00.6]} 2. exd5 {[%clk 0:03:02.1]}
2... Nf6 {[%clk 0:03:00.7]} 3. d4 {[%clk 0:03:03]} 3... Nxd5 {[%clk 0:03:01.4]}
4. Nf3 {[%clk 0:03:04.3]} 4... Bf5 {[%clk 0:03:01.8]} 5. c4 {[%clk 0:03:03.1]}
5... Nb4 {[%clk 0:03:02.6]} 6. Na3 {[%clk 0:03:01.8]} 6... e6 {[%clk 0:03:03.5]}
7. Be2 {[%clk 0:03:01.8]} 7... Be7 {[%clk 0:03:04.8]} 8. O-O {[%clk 0:03:02.5]}
8... O-O {[%clk 0:03:06.4]} 9. Bd2 {[%clk 0:02:58.7]} 9... N8c6 {[%clk
0:03:04.1]} 10. Bc3 {[%clk 0:02:59.3]} 10... Bf6 {[%clk 0:03:04.8]} 11. Qd2
{[%clk 0:02:53.2]} 11... a5 {[%clk 0:03:04.9]} 12. h3 {[%clk 0:02:52.2]} 12...
h6 {[%clk 0:03:05.6]} 13. Rfe1 {[%clk 0:02:52.7]} 13... Qe7 {[%clk 0:03:00.6]}
14. d5 {[%clk 0:02:49.3]} 14... Rfd8 {[%clk 0:03:01]} 15. Bf1 {[%clk 0:02:30.8]}
15... Qf8 {[%clk 0:03:00.5]} 16. Bxf6 {[%clk 0:02:30.3]} 16... gxf6 {[%clk
0:03:00]} 17. Qc3 {[%clk 0:02:30.8]} 17... exd5 {[%clk 0:03:00.2]} 18. Qxf6
{[%clk 0:02:29.5]} 18... Bg6 {[%clk 0:02:46.1]} 19. cxd5 {[%clk 0:02:29.2]}
19... Nxd5 {[%clk 0:02:42.7]} 20. Qh4 {[%clk 0:02:30]} 20... Qg7 {[%clk
0:02:42.6]} 21. Nc4 {[%clk 0:02:30.8]} 21... Ndb4 {[%clk 0:02:33.1]} 22. Rad1
{[%clk 0:02:16]} 22... Nxa2 {[%clk 0:02:29.1]} 23. Nce5 {[%clk 0:02:17.1]} 23...
Rxd1 {[%clk 0:02:24.5]} 24. Rxd1 {[%clk 0:02:14.6]} 24... Nxe5 {[%clk 0:02:25]}
0-1

[Event "*** Titled Tuesday Blitz"]
[Site "Chess.com"]
[Date "2019.09.03"]
[Round "10"]
[White "Kanthecarowin"]
[Black "Ali_rastbod"]
[Result "0-1"]
[WhiteElo "2423"]
[BlackElo "2706"]
[TimeControl "180+2"]
[EndTime "17:15:02 PDT"]
[Termination "Ali_rastbod won by resignation"]

1. d4 {[%clk 0:03:01.9]} 1... g6 {[%clk 0:02:59.6]} 2. c4 {[%clk 0:02:59.8]}
2... Bg7 {[%clk 0:03:01.1]} 3. Nf3 {[%clk 0:03:00]} 3... d6 {[%clk 0:03:01.9]}
4. Nc3 {[%clk 0:03:00.8]} 4... Bg4 {[%clk 0:03:01.1]} 5. e4 {[%clk 0:03:01.1]}
5... Bxf3 {[%clk 0:03:00.3]} 6. gxf3 {[%clk 0:03:03]} 6... e5 {[%clk 0:02:54.5]}
7. d5 {[%clk 0:03:03.5]} 7... Bh6 {[%clk 0:02:39.7]} 8. Bxh6 {[%clk 0:03:02.1]}
8... Nxh6 {[%clk 0:02:41.4]} 9. Qd2 {[%clk 0:03:03.2]} 9... Qh4 {[%clk
0:02:35.6]} 10. O-O-O {[%clk 0:02:58.5]} 10... O-O {[%clk 0:02:32.3]} 11. Bd3
{[%clk 0:02:57.9]} 11... Nd7 {[%clk 0:02:31.4]} 12. Rdg1 {[%clk 0:02:56.9]}
12... Nc5 {[%clk 0:02:22.8]} 13. Bc2 {[%clk 0:02:55.7]} 13... f5 {[%clk
0:02:17.3]} 14. exf5 {[%clk 0:02:52.7]} 14... Nxf5 {[%clk 0:02:19.2]} 15. Ne4
{[%clk 0:02:50.7]} 15... Nxe4 {[%clk 0:01:39]} 16. Bxe4 {[%clk 0:02:52.6]} 16...
Nd4 {[%clk 0:01:38.1]} 17. Bxg6 {[%clk 0:02:37.2]} 17... Nxf3 {[%clk 0:01:14.3]}
18. Bxh7+ {[%clk 0:02:34]} 18... Kxh7 {[%clk 0:01:11.9]} 19. Qd3+ {[%clk
0:02:33.7]} 19... e4 {[%clk 0:01:10.8]} 0-1

[Event "*** Titled Tuesday Blitz"]
[Site "Chess.com"]
[Date "2019.09.03"]
[Round "10"]
[White "Svet99"]
[Black "JMatias"]
[Result "1-0"]
[WhiteElo "2163"]
[BlackElo "2323"]
[TimeControl "180+2"]
[EndTime "17:15:03 PDT"]
[Termination "Svet99 won by resignation"]

1. Nf3 {[%clk 0:03:01.9]} 1... d5 {[%clk 0:02:57.9]} 2. d4 {[%clk 0:03:02]} 2...
c5 {[%clk 0:02:57.1]} 3. e3 {[%clk 0:03:02]} 3... Nf6 {[%clk 0:02:56.8]} 4. c3
{[%clk 0:03:02.5]} 4... e6 {[%clk 0:02:56.9]} 5. Nbd2 {[%clk 0:03:02.8]} 5...
Nc6 {[%clk 0:02:57.1]} 6. Bd3 {[%clk 0:03:03.3]} 6... Bd6 {[%clk 0:02:57.4]} 7.
O-O {[%clk 0:03:03.3]} 7... O-O {[%clk 0:02:58.4]} 8. dxc5 {[%clk 0:03:04]} 8...
Bxc5 {[%clk 0:02:59.5]} 9. b4 {[%clk 0:03:04.7]} 9... Bd6 {[%clk 0:02:56.9]} 10.
Bb2 {[%clk 0:03:05.7]} 10... Bd7 {[%clk 0:02:57.9]} 11. a3 {[%clk 0:03:02.5]}
11... Rc8 {[%clk 0:02:58.6]} 12. e4 {[%clk 0:03:02.4]} 12... Ne5 {[%clk
0:02:57.8]} 13. Nxe5 {[%clk 0:03:02.2]} 13... Bxe5 {[%clk 0:02:58.9]} 14. exd5
{[%clk 0:02:50.2]} 14... exd5 {[%clk 0:02:53.3]} 15. Qb3 {[%clk 0:02:45.7]}
15... Be6 {[%clk 0:02:39.9]} 16. Nf3 {[%clk 0:02:42.9]} 16... Bb8 {[%clk
0:02:35.5]} 17. Nd4 {[%clk 0:02:43]} 17... Qd6 {[%clk 0:02:31]} 18. g3 {[%clk
0:02:41.3]} 18... Bh3 {[%clk 0:02:31.9]} 19. Rfe1 {[%clk 0:02:41.5]} 19... Rfe8
{[%clk 0:02:28.9]} 20. c4 {[%clk 0:02:41.7]} 20... Ng4 {[%clk 0:02:18.9]} 21.
Nf5 {[%clk 0:02:32.1]} 21... Qd7 {[%clk 0:02:12.2]} 22. Nxg7 {[%clk 0:02:29.6]}
22... Rxe1+ {[%clk 0:02:07.6]} 23. Rxe1 {[%clk 0:02:29.4]} 23... d4 {[%clk
0:01:51.7]} 24. Nh5 {[%clk 0:02:24.1]} 24... Ne5 {[%clk 0:01:47.5]} 25. Nf6+
{[%clk 0:02:18.4]} 1-0

[Event "*** Titled Tuesday Blitz"]
[Site "Chess.com"]
[Date "2019.09.03"]
[Round "10"]
[White "chessking2151"]
[Black "Genghis_K"]
[Result "1-0"]
[WhiteElo "2635"]
[BlackElo "2847"]
[TimeControl "180+2"]
[EndTime "17:16:10 PDT"]
[Termination "chessking2151 won by resignation"]

1. d4 {[%clk 0:03:01.9]} 1... Nf6 {[%clk 0:02:57.9]} 2. Nf3 {[%clk 0:03:02.2]}
2... g6 {[%clk 0:02:58.1]} 3. g3 {[%clk 0:03:02.7]} 3... Bg7 {[%clk 0:02:59]} 4.
Bg2 {[%clk 0:03:02.5]} 4... O-O {[%clk 0:03:00]} 5. O-O {[%clk 0:03:04.1]} 5...
d6 {[%clk 0:03:00.5]} 6. c4 {[%clk 0:03:05.2]} 6... Nc6 {[%clk 0:02:59.2]} 7.
Nc3 {[%clk 0:03:04.8]} 7... a6 {[%clk 0:02:59.4]} 8. Qd3 {[%clk 0:03:01.5]} 8...
Nb4 {[%clk 0:02:54.9]} 9. Qb1 {[%clk 0:02:46.6]} 9... a5 {[%clk 0:02:53.9]} 10.
e4 {[%clk 0:02:44.7]} 10... Bg4 {[%clk 0:02:52.3]} 11. Be3 {[%clk 0:02:41.8]}
11... Bxf3 {[%clk 0:02:50.9]} 12. Bxf3 {[%clk 0:02:42]} 12... e5 {[%clk
0:02:52]} 13. d5 {[%clk 0:02:30.9]} 13... Nd7 {[%clk 0:02:51.9]} 14. a3 {[%clk
0:02:30.2]} 14... Na6 {[%clk 0:02:52.3]} 15. b4 {[%clk 0:02:31.4]} 15... f5
{[%clk 0:02:51.3]} 16. Bg2 {[%clk 0:02:24.8]} 16... f4 {[%clk 0:02:51.1]} 17.
Bd2 {[%clk 0:02:24.3]} 17... f3 {[%clk 0:02:51.5]} 18. Bh3 {[%clk 0:02:24.5]}
18... Bf6 {[%clk 0:02:45.9]} 19. Nb5 {[%clk 0:02:11.4]} 19... Kh8 {[%clk
0:02:42.8]} 20. Rd1 {[%clk 0:02:11]} 20... axb4 {[%clk 0:02:39.7]} 21. axb4
{[%clk 0:02:10.5]} 21... Bg5 {[%clk 0:02:40.3]} 22. Bxg5 {[%clk 0:01:55.8]}
22... Qxg5 {[%clk 0:02:40.5]} 23. Bxd7 {[%clk 0:01:56.8]} 23... Qh5 {[%clk
0:02:34.5]} 24. Ra3 {[%clk 0:01:37.2]} 24... Rad8 {[%clk 0:02:32.9]} 25. Be6
{[%clk 0:01:37.8]} 25... c6 {[%clk 0:02:30.3]} 26. dxc6 {[%clk 0:01:34.9]} 26...
bxc6 {[%clk 0:02:30.6]} 27. Nxd6 {[%clk 0:01:34.9]} 27... Nc7 {[%clk 0:02:29.2]}
28. Nf7+ {[%clk 0:01:33.1]} 28... Kg7 {[%clk 0:02:22.4]} 29. Nxd8 {[%clk
0:01:32.6]} 29... Rxd8 {[%clk 0:02:17.6]} 30. Rxd8 {[%clk 0:01:32.2]} 30... Nxe6
{[%clk 0:02:19.4]} 31. Rd7+ {[%clk 0:01:29.4]} 31... Kf6 {[%clk 0:02:20.2]} 32.
Qd1 {[%clk 0:01:25.3]} 1-0

[Event "*** Titled Tuesday Blitz"]
[Site "Chess.com"]
[Date "2019.09.03"]
[Round "10"]
[White "JussupowFan"]
[Black "Komissarov_alex"]
[Result "0-1"]
[WhiteElo "2186"]
[BlackElo "2111"]
[TimeControl "180+2"]
[EndTime "17:16:22 PDT"]
[Termination "Komissarov_alex won by resignation"]

1. e4 {[%clk 0:03:01.9]} 1... e5 {[%clk 0:02:59.6]} 2. Nf3 {[%clk 0:03:02.4]}
2... Nc6 {[%clk 0:02:59.5]} 3. Bb5 {[%clk 0:03:03.5]} 3... Nd4 {[%clk
0:02:57.9]} 4. Nxd4 {[%clk 0:03:03.7]} 4... exd4 {[%clk 0:02:56.4]} 5. d3 {[%clk
0:03:04.5]} 5... c6 {[%clk 0:02:55.5]} 6. Bc4 {[%clk 0:03:05.4]} 6... Nf6 {[%clk
0:02:55.6]} 7. e5 {[%clk 0:03:03.2]} 7... Qa5+ {[%clk 0:02:52]} 8. Bd2 {[%clk
0:02:57.5]} 8... Qxe5+ {[%clk 0:02:51.8]} 9. Kf1 {[%clk 0:02:58.5]} 9... d5
{[%clk 0:02:50.4]} 10. Bb3 {[%clk 0:03:00.1]} 10... Ng4 {[%clk 0:02:40.4]} 11.
h3 {[%clk 0:02:52.6]} 11... Nf6 {[%clk 0:02:40.3]} 12. g3 {[%clk 0:02:51.2]}
12... Bd6 {[%clk 0:02:37.3]} 13. Kg2 {[%clk 0:02:52.1]} 13... O-O {[%clk
0:02:36.4]} 14. Bf4 {[%clk 0:02:52.4]} 14... Qe7 {[%clk 0:02:31.7]} 15. Bxd6
{[%clk 0:02:52.2]} 15... Qxd6 {[%clk 0:02:31.9]} 16. Nd2 {[%clk 0:02:54.1]}
16... Qe6 {[%clk 0:02:25.1]} 17. Nf3 {[%clk 0:02:52.7]} 17... c5 {[%clk
0:02:24.6]} 18. Qe1 {[%clk 0:02:50.5]} 18... c4 {[%clk 0:02:10.2]} 19. Qxe6
{[%clk 0:02:48]} 19... Bxe6 {[%clk 0:02:08.2]} 20. Ba4 {[%clk 0:02:48.6]} 20...
a6 {[%clk 0:02:05.7]} 21. dxc4 {[%clk 0:02:36.1]} 21... dxc4 {[%clk 0:02:04.1]}
22. c3 {[%clk 0:02:36]} 22... b5 {[%clk 0:02:00.9]} 23. Bc2 {[%clk 0:02:35.7]}
23... d3 {[%clk 0:02:01.8]} 24. Bd1 {[%clk 0:02:36.8]} 24... Bd5 {[%clk
0:02:03]} 25. Re1 {[%clk 0:02:35.4]} 25... Rae8 {[%clk 0:02:00.6]} 26. Kf1
{[%clk 0:02:35.9]} 26... Rxe1+ {[%clk 0:01:54.2]} 27. Kxe1 {[%clk 0:02:32.6]}
27... Re8+ {[%clk 0:01:53.2]} 28. Kf1 {[%clk 0:02:33.8]} 28... Ne4 {[%clk
0:01:49.7]} 29. b3 {[%clk 0:02:27.9]} 29... Nxc3 {[%clk 0:01:48.3]} 30. bxc4
{[%clk 0:02:28.5]} 30... Bxc4 {[%clk 0:01:43.6]} 31. Nd2 {[%clk 0:02:27.9]}
31... Ne4 {[%clk 0:01:40.5]} 32. Nxe4 {[%clk 0:02:27.8]} 32... Rxe4 {[%clk
0:01:37.7]} 33. a4 {[%clk 0:02:27.9]} 33... d2+ {[%clk 0:01:30.2]} 34. Kg2
{[%clk 0:02:23.6]} 34... Re1 {[%clk 0:01:29.2]} 35. axb5 {[%clk 0:02:22.8]}
35... Bxb5 {[%clk 0:01:29.1]} 36. Rb1 {[%clk 0:02:18.4]} 36... h6 {[%clk
0:01:28.2]} 37. Kf3 {[%clk 0:02:16.2]} 37... Be2+ {[%clk 0:01:24.3]} 38. Bxe2
{[%clk 0:02:17.2]} 0-1

[Event "*** Titled Tuesday Blitz"]
[Site "Chess.com"]
[Date "2019.09.03"]
[Round "10"]
[White "SirMittensofMittensville"]
[Black "HouseOfDurin"]
[Result "1-0"]
[WhiteElo "2541"]
[BlackElo "2082"]
[TimeControl "180+2"]
[EndTime "17:16:27 PDT"]
[Termination "SirMittensofMittensville won on time"]

1. e4 {[%clk 0:03:01.9]} 1... c5 {[%clk 0:03:00.8]} 2. c3 {[%clk 0:03:02.9]}
2... d5 {[%clk 0:03:01.4]} 3. exd5 {[%clk 0:03:03.8]} 3... Qxd5 {[%clk
0:03:03.3]} 4. d4 {[%clk 0:03:05.5]} 4... Nc6 {[%clk 0:03:04.3]} 5. Nf3 {[%clk
0:03:05.8]} 5... Bf5 {[%clk 0:03:05.6]} 6. dxc5 {[%clk 0:03:05.2]} 6... Qxc5
{[%clk 0:02:46.9]} 7. Na3 {[%clk 0:03:01.6]} 7... Rd8 {[%clk 0:02:06.8]} 8. Qb3
{[%clk 0:03:01.7]} 8... Rd7 {[%clk 0:01:33.8]} 9. Nb5 {[%clk 0:02:55]} 9... Be6
{[%clk 0:00:56.7]} 10. Be3 {[%clk 0:02:36.4]} 10... Qxe3+ {[%clk 0:00:48.8]} 11.
fxe3 {[%clk 0:02:38.3]} 11... Bxb3 {[%clk 0:00:49.9]} 12. axb3 {[%clk
0:02:39.9]} 12... a6 {[%clk 0:00:51.2]} 13. Nbd4 {[%clk 0:02:41.1]} 13... Nxd4
{[%clk 0:00:47.1]} 14. exd4 {[%clk 0:02:43]} 14... e6 {[%clk 0:00:40.4]} 15. b4
{[%clk 0:02:42.5]} 15... Rd6 {[%clk 0:00:16.3]} 16. b5 {[%clk 0:02:42.3]} 16...
axb5 {[%clk 0:00:17.2]} 17. Bxb5+ {[%clk 0:02:39.6]} 17... Ke7 {[%clk
0:00:18.5]} 18. Ra8 {[%clk 0:02:38.5]} 18... Rb6 {[%clk 0:00:19.1]} 19. Re8+
{[%clk 0:02:38.3]} 19... Kf6 {[%clk 0:00:20.4]} 20. Rxf8 {[%clk 0:02:36.7]}
20... Rxb5 {[%clk 0:00:21.6]} 21. Ne5 {[%clk 0:02:30.3]} 21... Rxb2 {[%clk
0:00:17.9]} 22. O-O+ {[%clk 0:02:28.5]} 22... Kg5 {[%clk 0:00:05.2]} 23. Nxf7+
{[%clk 0:02:28.8]} 1-0